fUSD/lending_fUSD_20250823
["ID","MTS","AMOUNT","RATE_DAILY","PERIOD"]
[380998311,1755930736477,-400.0,0.00015616,2]
[380998312,1755930736487,-968.0,0.00015616,2]
[380998313,1755930736497,-834.9,0.00015616,2]
[380998314,1755930736507,-838.11,0.00015616,2]
[380998315,1755930736516,-1449.64,0.00015616,2]
[380998316,1755930736527,-873.94,0.00015616,2]
[380998317,1755930736539,-764.67,0.00015616,2]
[380998318,1755930736549,-839.44,0.00015616,2]
[380998319,1755930736559,-402.87,0.00015616,2]
[380998320,1755930736569,-189.01432082,0.00015616,2]
[380998321,1755930736579,-400.0,0.00015616,2]
[380998322,1755930736590,-747.31,0.00015616,2]
[380998323,1755930736600,-514.65,0.00015616,2]
[380998324,1755930736609,-2296.87,0.00015616,2]
[380998325,1755930736619,-400.0,0.00015616,2]
[380998326,1755930736629,-400.0,0.00015616,2]
[380998327,1755930736639,-1231.43,0.00015616,2]
[380998328,1755930736649,-496.75,0.00015616,2]
[380998329,1755930736659,-400.0,0.00015616,2]
[380998330,1755930736668,-1067.81,0.00015616,2]
[380998331,1755930736678,-400.0,0.00015616,2]
[380998332,1755930736687,-1143.89,0.00015616,2]
[380998333,1755930736698,-400.0,0.00015616,2]
[380998334,1755930736708,-1043.98,0.00015616,2]
[380998335,1755930736718,-1047.41,0.00015616,2]
[380998336,1755930736727,-621.01,0.00015616,2]
[380998337,1755930736737,-688.55,0.00015616,2]
[380998338,1755930736747,-2024.11,0.00015616,2]
[380998339,1755930736757,-400.0,0.00015616,2]
[380998340,1755930736767,-400.0,0.00015616,2]
[380998341,1755930736777,-471.83,0.00015616,2]
[380998342,1755930736786,-1569.0,0.00015616,2]
[380998343,1755930736797,-702.78,0.00015616,2]
[380998344,1755930736807,-1557.8,0.00015616,2]
[380998345,1755930736818,-332.3,0.00015616,2]
[380998346,1755930736829,-562.49,0.00015616,2]
[380998347,1755930736839,-1015.96,0.00015616,2]
[380998348,1755930736850,-400.0,0.00015616,2]
[380998349,1755930736860,-415.83,0.00015616,2]
[380998350,1755930736870,-1619.12,0.00015616,2]
[380998351,1755930736880,-873.77,0.00015616,2]
[380998352,1755930736891,-704.74,0.00015616,2]
[380998353,1755930736900,-603.17,0.00015616,2]
[380998354,1755930736911,-1020.89,0.00015616,2]
[380998355,1755930736921,-718.17,0.00015616,2]
[380998356,1755930736932,-1397.26,0.00015616,2]
[380998357,1755930736942,-779.46,0.00015616,2]
[380998358,1755930736952,-659.51,0.00015616,2]
[380998359,1755930736962,-796.66,0.00015616,2]
[380998360,1755930736972,-873.13,0.00015616,2]
[380998361,1755930736981,-400.0,0.00015616,2]
[380998362,1755930736991,-1242.26,0.00015616,2]
[380998363,1755930737001,-535.86,0.00015616,2]
[380998364,1755930737011,-400.0,0.00015616,2]
[380998365,1755930737021,-607.83,0.00015616,2]
[380998366,1755930737032,-400.0,0.00015616,2]
[380998367,1755930737042,-400.0,0.00015616,2]
[380998368,1755930737053,-734.36,0.00015616,2]
[380998369,1755930737063,-643.58,0.00015616,2]
[380998370,1755930737074,-1009.14,0.00015616,2]
[380998371,1755930737086,-593.25,0.00015616,2]
[380998372,1755930737097,-590.01,0.00015616,2]
[380998373,1755930737108,-566.68,0.00015616,2]
[380998374,1755930737119,-739.95,0.00015616,2]
[380998375,1755930737130,-752.12,0.00015616,2]
[380998376,1755930737140,-821.45,0.00015616,2]
[380998377,1755930737149,-1020.13,0.00015616,2]
[380998378,1755930737159,-686.64,0.00015616,2]
[380998379,1755930737170,-567.76,0.00015616,2]
[380998380,1755930737180,-1008.59,0.00015616,2]
[380998381,1755930737190,-749.2,0.00015616,2]
[380998382,1755930737201,-782.78,0.00015616,2]
[380998383,1755930737211,-761.24,0.00015616,2]
[380998384,1755930737221,-676.25,0.00015616,2]
[380998385,1755930737231,-696.26,0.00015616,2]
[380998386,1755930737242,-1360.81,0.00015616,2]
[380998387,1755930737252,-512.32,0.00015616,2]
[380998388,1755930737263,-1871.16,0.00015616,2]
[380998389,1755930737272,-408.99,0.00015616,2]
[380998390,1755930737282,-491.72,0.00015616,2]
[380998391,1755930737295,-638.4,0.00015616,2]
[380998392,1755930737306,-633.69,0.00015616,2]
[380998393,1755930737316,-1307.02,0.00015616,2]
[380998394,1755930737326,-807.4,0.00015616,2]
[380998395,1755930737337,-515.86,0.00015616,2]
[380998396,1755930737347,-459.89,0.00015616,2]
[380998397,1755930737357,-718.67,0.00015616,2]
[380998398,1755930737367,-553.1,0.00015616,2]
[380998399,1755930737378,-620.72,0.00015616,2]
[380998400,1755930737388,-928.31,0.00015616,2]
[380998401,1755930737398,-2900.39,0.00015616,2]
[380998402,1755930737408,-344.25396946,0.00015616,2]
[380998403,1755930737418,-405.54,0.00015616,2]
[380998404,1755930737428,-591.71,0.00015616,2]
[380998405,1755930737437,-1259.98,0.00015616,2]
[380998406,1755930737447,-992.94,0.00015616,2]
[380998407,1755930737459,-494.42,0.00015616,2]
[380998408,1755930737470,-400.0,0.00015616,2]
[380998409,1755930737479,-734.9,0.00015616,2]
[380998410,1755930737490,-810.57,0.00015616,2]
[380998411,1755930737500,-709.79,0.00015616,2]
[380998412,1755930737510,-931.49,0.00015616,2]
[380998413,1755930737520,-567.95,0.00015616,2]
[380998414,1755930737530,-827.71,0.00015616,2]
[380998415,1755930737540,-624.47,0.00015616,2]
[380998416,1755930737550,-400.0,0.00015616,2]
[380998417,1755930737560,-3127.36,0.00015616,2]
[380998418,1755930737571,-732.26,0.00015616,2]
[380998419,1755930737580,-400.0,0.00015616,2]
[380998420,1755930737591,-400.0,0.00015616,2]
[380998421,1755930737601,-427.22,0.00015616,2]
[380998422,1755930737611,-400.0,0.00015616,2]
[380998423,1755930737620,-400.0,0.00015616,2]
[380998424,1755930737630,-1299.81,0.00015616,2]
[380998425,1755930737640,-400.0,0.00015616,2]
[380998426,1755930737650,-400.0,0.00015616,2]
[380998427,1755930737660,-400.0,0.00015616,2]
[380998428,1755930737670,-879.49,0.00015616,2]
[380998429,1755930737679,-400.0,0.00015616,2]
[380998430,1755930737689,-762.43,0.00015616,2]
[380998431,1755930737700,-992.2,0.00015616,2]
[380998432,1755930737710,-481.7,0.00015616,2]
[380998433,1755930737720,-578.22,0.00015616,2]
[380998434,1755930737730,-400.0,0.00015616,2]
[380998435,1755930737740,-546.74,0.00015616,2]
[380998436,1755930737750,-542.83,0.00015616,2]
[380998437,1755930737760,-717.03,0.00015616,2]
[380998438,1755930737771,-400.0,0.00015616,2]
[380998439,1755930737781,-401.89,0.00015616,2]
[380998440,1755930737790,-459.83,0.00015616,2]
[380998441,1755930737800,-593.29,0.00015616,2]
[380998442,1755930737811,-400.0,0.00015616,2]
[380998443,1755930737821,-552.32,0.00015616,2]
[380998444,1755930737831,-1000.0,0.00015616,2]
[380998445,1755930737841,-2000.0,0.00015616,2]
[380998446,1755930737850,-2000.0,0.00015616,2]
[380998447,1755930737860,-2000.0,0.00015616,2]
[380998448,1755930737871,-232.53094817,0.00015616,2]
[380998449,1755930737881,-2000.0,0.00015616,2]
[380998450,1755930737891,-1650.20043628,0.00015616,2]
[380998451,1755930737902,-1666.72841973,0.00015616,2]
[380998452,1755930737912,-470.81403864,0.00015616,2]
[380998453,1755930737923,-2000.0,0.00015616,2]
[380998454,1755930737935,-2000.0,0.00015616,2]
[380998455,1755930737946,-2000.0,0.00015616,2]
[380998456,1755930737956,-2000.0,0.00015616,2]
[380998457,1755930737966,-2000.0,0.00015616,2]
[380998458,1755930737976,-1697.13049338,0.00015616,2]
[380998459,1755930737988,-1850.86945684,0.00015616,2]
[380998460,1755930737999,-2000.0,0.00015616,2]
[380998461,1755930738009,-2000.0,0.00015616,2]
[380998462,1755930738019,-2000.0,0.00015616,2]
[380998463,1755930738030,-252.6525107,0.00015616,2]
[380998464,1755930738041,-300.0,0.00015617,2]
[380998465,1755930738051,-151.0,0.00015617,2]
[380998466,1755930738062,-799.21,0.0001563,2]
[380998467,1755930738073,-151.0,0.00015638,2]
[380998468,1755930738083,-151.0,0.00015638,2]
[380998469,1755930738094,-151.0,0.0001565,2]
[380998470,1755930738105,-733.0,0.00015651,2]
[380998471,1755930738116,-696.0,0.00015651,2]
[380998472,1755930738127,-736.0,0.00015651,2]
[380998473,1755930738138,-150.0,0.00015672,2]
[380998474,1755930738149,-150.0,0.00015729,2]
[380998475,1755930738159,-3161.71,0.00015753,2]
[380998476,1755930738169,-150.0,0.00015787,2]
[380998477,1755930738179,-286.16039706,0.0001579,2]
[380998478,1755930738189,-1011.4,0.000158,6]
[380998479,1755930738202,-5662.99,0.000158,6]
[380998480,1755930738212,-216.0,0.0001582,2]
[380998481,1755930738223,-150.0,0.00015844,2]
[380998482,1755930738233,-400.0,0.0001589,2]
[380998483,1755930738243,-400.0,0.0001589,2]
[380998484,1755930738253,-400.0,0.0001589,2]
[380998485,1755930738264,-400.0,0.0001589,2]
[380998486,1755930738274,-400.0,0.0001589,2]
[380998487,1755930738285,-343.60391217,0.0001589,2]
[380998488,1755930738299,-400.0,0.0001589,2]
[380998489,1755930738310,-582.01,0.0001589,2]
[380998490,1755930738650,-514.56,0.0001589,2]
[380998491,1755930738667,-704.41,0.0001589,2]
[380998492,1755930738677,-1531.46,0.0001589,2]
[380998493,1755930738686,-400.0,0.0001589,2]
[380998494,1755930738697,-400.0,0.0001589,2]
[380998495,1755930738707,-554.63,0.0001589,2]
[380998496,1755930738717,-877.84,0.0001589,2]
[380998497,1755930738727,-643.74,0.0001589,2]
[380998498,1755930738737,-400.0,0.0001589,2]
[380998499,1755930738746,-400.0,0.0001589,2]
[380998500,1755930738756,-400.0,0.0001589,2]
[380998501,1755930738766,-400.0,0.0001589,2]
[380998502,1755930738775,-400.0,0.0001589,2]
[380998503,1755930738784,-400.0,0.0001589,2]
[380998504,1755930738793,-400.0,0.0001589,2]
[380998505,1755930738802,-572.24,0.0001589,2]
[380998506,1755930738812,-400.0,0.0001589,2]
[380998507,1755930738822,-400.0,0.0001589,2]
[380998508,1755930738832,-743.91,0.0001589,2]
[380998509,1755930738842,-526.46,0.0001589,2]
[380998510,1755930738852,-224.95825345,0.0001589,2]
[380998511,1755930738861,-400.0,0.0001589,2]
[380998512,1755930738871,-400.0,0.0001589,2]
[380998513,1755930738881,-400.0,0.0001589,2]
[380998514,1755930738891,-400.0,0.0001589,2]
[380998515,1755930738901,-400.0,0.0001589,2]
[380998516,1755930738910,-400.0,0.0001589,2]
[380998517,1755930738919,-749.52,0.0001589,2]
[380998518,1755930738929,-400.0,0.0001589,2]
[380998519,1755930738938,-400.0,0.0001589,2]
[380998520,1755930738949,-540.59,0.0001589,2]
[380998521,1755930738959,-410.49,0.0001589,2]
[380998522,1755930738968,-493.14,0.0001589,2]
[380998523,1755930738978,-920.84,0.0001589,2]
[380998524,1755930738988,-566.63,0.0001589,2]
[380998525,1755930738997,-400.0,0.0001589,2]
[380998526,1755930739007,-432.17,0.0001589,2]
[380998527,1755930739016,-400.0,0.0001589,2]
[380998528,1755930739026,-400.0,0.0001589,2]
[380998529,1755930739036,-740.84,0.0001589,2]
[380998530,1755930739046,-783.8,0.0001589,2]
[380998531,1755930739056,-604.31,0.0001589,2]
[380998532,1755930739065,-1133.06,0.0001589,2]
[380998533,1755930739075,-400.0,0.0001589,2]
[380998534,1755930739084,-517.07,0.0001589,2]
[380998535,1755930739094,-495.74,0.0001589,2]
[380998536,1755930739103,-400.0,0.0001589,2]
[380998537,1755930739113,-413.56,0.0001589,2]
[380998538,1755930739123,-400.0,0.0001589,2]
[380998539,1755930739133,-400.0,0.0001589,2]
[380998540,1755930739142,-400.0,0.0001589,2]
[380998541,1755930739152,-696.19,0.0001589,2]
[380998542,1755930739162,-180.9363089,0.0001589,2]
[380998543,1755930739171,-448.63,0.0001589,2]
[380998544,1755930739181,-409.77,0.0001589,2]
[380998545,1755930739191,-400.0,0.0001589,2]
[380998546,1755930739201,-400.0,0.0001589,2]
[380998547,1755930739210,-400.0,0.0001589,2]
[380998548,1755930739220,-400.0,0.0001589,2]
[380998549,1755930739230,-741.34,0.0001589,2]
[380998550,1755930739240,-654.73,0.0001589,2]
[380998551,1755930739250,-412.9,0.0001589,2]
[380998552,1755930739259,-773.01,0.0001589,2]
[380998553,1755930739268,-400.0,0.0001589,2]
[380998554,1755930739278,-428.59,0.0001589,2]
[380998555,1755930739288,-400.0,0.0001589,2]
[380998556,1755930739302,-400.0,0.0001589,2]
[380998557,1755930739312,-439.05,0.0001589,2]
[380998558,1755930739321,-805.82,0.0001589,2]
[380998559,1755930739331,-400.0,0.0001589,2]
[380998560,1755930739340,-425.41691564,0.0001589,2]
[380998561,1755930739350,-407.07,0.0001589,2]
[380998562,1755930739359,-733.47,0.0001589,2]
[380998563,1755930739369,-400.0,0.0001589,2]
[380998564,1755930739378,-400.28,0.0001589,2]
[380998565,1755930739388,-432.84,0.0001589,2]
[380998566,1755930739398,-834.46,0.0001589,2]
[380998567,1755930739408,-400.0,0.0001589,2]
[380998568,1755930739419,-400.0,0.0001589,2]
[380998569,1755930739429,-728.67,0.0001589,2]
[380998570,1755930739439,-400.0,0.0001589,2]
[380998571,1755930739450,-400.0,0.0001589,2]
[380998572,1755930739461,-400.0,0.0001589,2]
[380998573,1755930739470,-491.05,0.0001589,2]
[380998574,1755930739480,-482.83,0.0001589,2]
[380998575,1755930739490,-426.08,0.0001589,2]
[380998576,1755930739499,-718.23,0.0001589,2]
[380998577,1755930739509,-510.3261991,0.0001589,2]
[380998578,1755930739518,-400.0,0.0001589,2]
[380998579,1755930739527,-414.75,0.0001589,2]
[380998580,1755930739537,-730.88,0.0001589,2]
[380998581,1755930739546,-525.23,0.0001589,2]
[380998582,1755930739555,-400.0,0.0001589,2]
[380998583,1755930739565,-205.89222905,0.0001589,2]
[380998584,1755930739574,-656.34,0.0001589,2]
[380998585,1755930739583,-861.42,0.0001589,2]
[380998586,1755930739592,-476.79649855,0.0001589,2]
[380998587,1755930739601,-628.73,0.0001589,2]
[380998588,1755930739611,-775.38,0.0001589,2]
[380998589,1755930739620,-400.0,0.0001589,2]
[380998590,1755930739629,-400.0,0.0001589,2]
[380998591,1755930739639,-404.23,0.0001589,2]
[380998592,1755930739648,-713.07,0.0001589,2]
[380998593,1755930739657,-452.56,0.0001589,2]
[380998594,1755930739666,-674.32,0.0001589,2]
[380998595,1755930739675,-400.0,0.0001589,2]
[380998596,1755930739685,-693.74,0.0001589,2]
[380998597,1755930739695,-400.0,0.0001589,2]
[380998598,1755930739704,-460.3,0.0001589,2]
[380998599,1755930739713,-400.0,0.0001589,2]
[380998600,1755930739723,-400.0,0.0001589,2]
[380998601,1755930739732,-400.0,0.0001589,2]
[380998602,1755930739742,-400.0,0.0001589,2]
[380998603,1755930739751,-400.0,0.0001589,2]
[380998604,1755930739761,-400.0,0.0001589,2]
[380998605,1755930739770,-651.66,0.0001589,2]
[380998606,1755930739780,-490.04,0.0001589,2]
[380998607,1755930739790,-423.85,0.0001589,2]
[380998608,1755930739800,-597.2,0.0001589,2]
[380998609,1755930739809,-655.44,0.0001589,2]
[380998610,1755930739819,-400.0,0.0001589,2]
[380998611,1755930739830,-400.0,0.0001589,2]
[380998612,1755930739839,-1022.82,0.0001589,2]
[380998613,1755930739848,-400.0,0.0001589,2]
[380998614,1755930739858,-470.46,0.0001589,2]
[380998615,1755930739867,-400.0,0.0001589,2]
[380998616,1755930739877,-444.53,0.0001589,2]
[380998617,1755930739887,-400.0,0.0001589,2]
[380998618,1755930739896,-400.0,0.0001589,2]
[380998619,1755930739905,-451.36,0.0001589,2]
[380998620,1755930739914,-649.5,0.0001589,2]
[380998621,1755930739924,-400.0,0.0001589,2]
[380998622,1755930739933,-636.13,0.0001589,2]
[380998623,1755930739943,-400.0,0.0001589,2]
[380998624,1755930739952,-480.27,0.0001589,2]
[380998625,1755930739962,-400.0,0.0001589,2]
[380998626,1755930739971,-600.17,0.0001589,2]
[380998627,1755930739981,-517.49,0.0001589,2]
[380998628,1755930739991,-466.17,0.0001589,2]
[380998629,1755930740001,-540.76,0.0001589,2]
[380998630,1755930740010,-492.84441594,0.0001589,2]
[380998631,1755930740020,-753.31,0.0001589,2]
[380998632,1755930740029,-404.06,0.0001589,2]
[380998633,1755930740039,-597.64,0.0001589,2]
[380998634,1755930740048,-458.82,0.0001589,2]
[380998635,1755930740059,-404.41,0.0001589,2]
[380998636,1755930740069,-400.0,0.0001589,2]
[380998637,1755930740078,-420.73,0.0001589,2]
[380998638,1755930740087,-400.0,0.0001589,2]
[380998639,1755930740096,-400.0,0.0001589,2]
[380998640,1755930740106,-898.28,0.0001589,2]
[380998641,1755930740115,-400.0,0.0001589,2]
[380998642,1755930740125,-400.0,0.0001589,2]
[380998643,1755930740134,-433.34,0.0001589,2]
[380998644,1755930740143,-400.0,0.0001589,2]
[380998645,1755930740153,-813.43,0.0001589,2]
[380998646,1755930740163,-152.259471,0.0001589,2]
[380998647,1755930740172,-400.0,0.0001589,2]
[380998648,1755930740181,-400.0,0.0001589,2]
[380998649,1755930740190,-400.0,0.0001589,2]
[380998650,1755930740200,-400.0,0.0001589,2]
[380998651,1755930740210,-589.73,0.0001589,2]
[380998652,1755930740220,-400.0,0.0001589,2]
[380998653,1755930740229,-530.1,0.0001589,2]
[380998654,1755930740239,-683.39,0.0001589,2]
[380998655,1755930740249,-484.79,0.0001589,2]
[380998656,1755930740259,-643.13,0.0001589,2]
[380998657,1755930740268,-400.0,0.0001589,2]
[380998658,1755930740277,-400.0,0.0001589,2]
[380998659,1755930740287,-927.72,0.0001589,2]
[380998660,1755930740300,-400.0,0.0001589,2]
[380998661,1755930740310,-417.61,0.0001589,2]
[380998662,1755930740320,-558.89,0.0001589,2]
[380998663,1755930740330,-400.0,0.0001589,2]
[380998664,1755930740341,-433.09,0.0001589,2]
[380998665,1755930740351,-254.304402,0.0001589,2]
[380998666,1755930740360,-460.41,0.0001589,2]
[380998667,1755930740370,-400.0,0.0001589,2]
[380998668,1755930740379,-463.42,0.0001589,2]
[380998669,1755930740389,-400.13,0.0001589,2]
[380998670,1755930740398,-473.4,0.0001589,2]
[380998671,1755930740407,-400.0,0.0001589,2]
[380998672,1755930740417,-400.0,0.0001589,2]
[380998673,1755930740427,-400.0,0.0001589,2]
[380998674,1755930740436,-537.84,0.0001589,2]
[380998675,1755930740446,-598.61,0.0001589,2]
[380998676,1755930740456,-659.98,0.0001589,2]
[380998677,1755930740466,-400.0,0.0001589,2]
[380998678,1755930740475,-559.14,0.0001589,2]
[380998679,1755930740485,-666.69,0.0001589,2]
[380998680,1755930740495,-549.63,0.0001589,2]
[380998681,1755930740504,-1062.126313,0.0001589,2]
[380998682,1755930740513,-551.78,0.0001589,2]
[380998683,1755930740522,-400.0,0.0001589,2]
[380998684,1755930740532,-670.71,0.0001589,2]
[380998685,1755930740542,-488.75,0.0001589,2]
[380998686,1755930740551,-504.46,0.0001589,2]
[380998687,1755930740560,-498.06,0.0001589,2]
[380998688,1755930740569,-400.0,0.0001589,2]
[380998689,1755930740579,-1574.58,0.0001589,2]
[380998690,1755930740588,-523.65,0.0001589,2]
[380998691,1755930740597,-690.06,0.0001589,2]
[380998692,1755930740607,-483.37,0.0001589,2]
[380998693,1755930740616,-906.04,0.0001589,2]
[380998694,1755930740625,-478.28,0.0001589,2]
[380998695,1755930740635,-400.0,0.0001589,2]
[380998696,1755930740644,-463.08,0.0001589,2]
[380998697,1755930740653,-400.0,0.0001589,2]
[380998698,1755930740662,-896.65,0.0001589,2]
[380998699,1755930740671,-664.4,0.0001589,2]
[380998700,1755930740680,-485.14,0.0001589,2]
[380998701,1755930740690,-463.63,0.0001589,2]
[380998702,1755930740700,-400.0,0.0001589,2]
[380998703,1755930740709,-400.46,0.0001589,2]
[380998704,1755930740718,-522.33,0.0001589,2]
[380998705,1755930740728,-597.16,0.0001589,2]
[380998706,1755930740737,-634.29,0.0001589,2]
[380998707,1755930740746,-730.43,0.0001589,2]
[380998708,1755930740756,-400.0,0.0001589,2]
[380998709,1755930740766,-777.56,0.0001589,2]
[380998710,1755930740775,-406.13,0.0001589,2]
[380998711,1755930740784,-585.18,0.0001589,2]
[380998712,1755930740795,-400.0,0.0001589,2]
[380998713,1755930740804,-400.0,0.0001589,2]
[380998714,1755930740816,-406.67,0.0001589,2]
[380998715,1755930740826,-629.89,0.0001589,2]
[380998716,1755930740835,-400.0,0.0001589,2]
[380998717,1755930740845,-820.56,0.0001589,2]
[380998718,1755930740854,-677.66,0.0001589,2]
[380998719,1755930740863,-654.77,0.0001589,2]
[380998720,1755930740878,-400.0,0.0001589,2]
[380998721,1755930740887,-400.0,0.0001589,2]
[380998722,1755930740896,-504.2,0.0001589,2]
[380998723,1755930740906,-700.52,0.0001589,2]
[380998724,1755930740915,-522.25,0.0001589,2]
[380998725,1755930740924,-541.83,0.0001589,2]
[380998726,1755930740933,-924.13,0.0001589,2]
[380998727,1755930740942,-400.0,0.0001589,2]
[380998728,1755930740952,-626.52,0.0001589,2]
[380998729,1755930741060,-983.52,0.0001589,2]
[380998730,1755930741070,-400.0,0.0001589,2]
[380998731,1755930741080,-534.72,0.0001589,2]
[380998732,1755930741089,-400.0,0.0001589,2]
[380998733,1755930741099,-463.0,0.0001589,2]
[380998734,1755930741108,-810.94,0.0001589,2]
[380998735,1755930741117,-632.58,0.0001589,2]
[380998736,1755930741126,-1018.11,0.0001589,2]
[380998737,1755930741135,-459.77,0.0001589,2]
[380998738,1755930741144,-400.0,0.0001589,2]
[380998739,1755930741153,-400.0,0.0001589,2]
[380998740,1755930741163,-497.42855628,0.0001589,2]
[380998741,1755930741173,-765.63,0.0001589,2]
[380998742,1755930741182,-814.39,0.0001589,2]
[380998743,1755930741191,-400.0,0.0001589,2]
[380998744,1755930741201,-464.59,0.0001589,2]
[380998745,1755930741210,-400.0,0.0001589,2]
[380998746,1755930741219,-744.29,0.0001589,2]
[380998747,1755930741229,-707.25,0.0001589,2]
[380998748,1755930741238,-506.42,0.0001589,2]
[380998749,1755930741247,-400.0,0.0001589,2]
[380998750,1755930741256,-414.09,0.0001589,2]
[380998751,1755930741266,-715.14,0.0001589,2]
[380998752,1755930741275,-1000.0,0.0001589,2]
[380998753,1755930741285,-738.62,0.0001589,2]
[380998754,1755930741297,-400.0,0.0001589,2]
[380998755,1755930741306,-802.16,0.0001589,2]
[380998756,1755930741316,-716.85,0.0001589,2]
[380998757,1755930741326,-400.0,0.0001589,2]
[380998758,1755930741337,-632.2,0.0001589,2]
[380998759,1755930741347,-933.05,0.0001589,2]
[380998760,1755930741357,-400.0,0.0001589,2]
[380998761,1755930741370,-667.21,0.0001589,2]
[380998762,1755930741379,-841.3,0.0001589,2]
[380998763,1755930741389,-400.0,0.0001589,2]
[380998764,1755930741399,-678.61,0.0001589,2]
[380998765,1755930741409,-400.0,0.0001589,2]
[380998766,1755930741418,-400.0,0.0001589,2]
[380998767,1755930741428,-449.99,0.0001589,2]
[380998768,1755930741437,-430.74,0.0001589,2]
[380998769,1755930741447,-519.22,0.0001589,2]
[380998770,1755930741456,-753.87,0.0001589,2]
[380998771,1755930741465,-578.08,0.0001589,2]
[380998772,1755930741474,-400.0,0.0001589,2]
[380998773,1755930741484,-762.2,0.0001589,2]
[380998774,1755930741493,-552.89,0.0001589,2]
[380998775,1755930741502,-400.0,0.0001589,2]
[380998776,1755930741512,-400.0,0.0001589,2]
[380998777,1755930741522,-756.24,0.0001589,2]
[380998778,1755930741531,-400.0,0.0001589,2]
[380998779,1755930741540,-832.04,0.0001589,2]
[380998780,1755930741549,-734.03,0.0001589,2]
[380998781,1755930741559,-881.58,0.0001589,2]
[380998782,1755930741568,-400.0,0.0001589,2]
[380998783,1755930741577,-1130.07,0.0001589,2]
[380998784,1755930741586,-607.46,0.0001589,2]
[380998785,1755930741596,-403.96,0.0001589,2]
[380998786,1755930741605,-1082.64,0.0001589,2]
[380998787,1755930741614,-641.12,0.0001589,2]
[380998788,1755930741623,-400.0,0.0001589,2]
[380998789,1755930741633,-711.56,0.0001589,2]
[380998790,1755930741643,-400.0,0.0001589,2]
[380998791,1755930741652,-400.0,0.0001589,2]
[380998792,1755930741661,-774.36,0.0001589,2]
[380998793,1755930741670,-400.0,0.0001589,2]
[380998794,1755930741680,-472.39,0.0001589,2]
[380998795,1755930741690,-744.18,0.0001589,2]
[380998796,1755930741700,-400.0,0.0001589,2]
[380998797,1755930741710,-541.28,0.0001589,2]
[380998798,1755930741719,-791.97,0.0001589,2]
[380998799,1755930741729,-976.58,0.0001589,2]
[380998800,1755930741738,-411.91,0.0001589,2]
[380998801,1755930741748,-621.35,0.0001589,2]
[380998802,1755930741758,-690.96,0.0001589,2]
[380998803,1755930741768,-602.8,0.0001589,2]
[380998804,1755930741777,-905.63,0.0001589,2]
[380998805,1755930741786,-893.46,0.0001589,2]
[380998806,1755930741796,-433.28,0.0001589,2]
[380998807,1755930741805,-400.0,0.0001589,2]
[380998808,1755930741815,-664.51,0.0001589,2]
[380998809,1755930741824,-400.0,0.0001589,2]
[380998810,1755930741833,-610.58,0.0001589,2]